lending/lending_fUSD_20250425
["ID","MTS","AMOUNT","RATE_DAILY","PERIOD"]
[358992238,1745611846672,-500.0,0.00027397,2]
[358992240,1745611846682,-549.22,0.00027397,2]
[358992242,1745611846693,-500.0,0.00027397,2]
[358992244,1745611846703,-500.0,0.00027397,2]
[358992246,1745611846713,-500.0,0.00027397,2]
[358992249,1745611846723,-500.0,0.00027397,2]
[358992251,1745611846732,-551.38411433,0.00027397,2]
[358992253,1745611846742,-500.0,0.00027397,2]
[358992255,1745611846751,-500.0,0.00027397,2]
[358992257,1745611846762,-633.1,0.00027397,2]
[358992259,1745611846772,-500.0,0.00027397,2]
[358992261,1745611846781,-560.73691339,0.00027397,2]
[358992263,1745611846791,-216.72474542,0.00027397,2]
[358992265,1745611846800,-500.0,0.00027397,2]
[358992267,1745611846810,-500.0,0.00027397,2]
[358992269,1745611846820,-500.0,0.00027397,2]
[358992271,1745611846829,-500.0,0.00027397,2]
[358992273,1745611846839,-500.0,0.00027397,2]
[358992275,1745611846848,-500.0,0.00027397,2]
[358992277,1745611846858,-500.0,0.00027397,2]
[358992279,1745611846868,-500.0,0.00027397,2]
[358992281,1745611846877,-500.0,0.00027397,2]
[358992283,1745611846887,-500.0,0.00027397,2]
[358992285,1745611846897,-500.0,0.00027397,2]
[358992287,1745611846907,-500.0,0.00027397,2]
[358992289,1745611846916,-500.0,0.00027397,2]
[358992291,1745611846926,-622.74,0.00027397,2]
[358992293,1745611846936,-500.0,0.00027397,2]
[358992295,1745611846946,-500.0,0.00027397,2]
[358992297,1745611846955,-500.0,0.00027397,2]
[358992300,1745611846965,-500.0,0.00027397,2]
[358992302,1745611846975,-903.7,0.00027397,2]
[358992304,1745611846984,-529.65301712,0.00027397,2]
[358992306,1745611846994,-500.0,0.00027397,2]
[358992308,1745611847004,-500.0,0.00027397,2]
[358992310,1745611847013,-500.0,0.00027397,2]
[358992312,1745611847023,-500.0,0.00027397,2]
[358992314,1745611847032,-1109.13,0.00027397,2]
[358992316,1745611847043,-500.0,0.00027397,2]
[358992318,1745611847053,-500.0,0.00027397,2]
[358992320,1745611847062,-500.0,0.00027397,2]
[358992322,1745611847073,-500.0,0.00027397,2]
[358992324,1745611847084,-783.64,0.00027397,2]
[358992326,1745611847094,-500.0,0.00027397,2]
[358992328,1745611847103,-282.97046141,0.00027397,2]
[358992330,1745611847115,-517.30669021,0.00027397,2]
[358992332,1745611847125,-500.0,0.00027397,2]
[358992334,1745611847135,-631.35,0.00027397,2]
[358992336,1745611847146,-500.0,0.00027397,2]
[358992338,1745611847156,-937.24,0.00027397,2]
[358992340,1745611847167,-473.31210108,0.00027397,2]
[358992342,1745611847176,-500.0,0.00027397,2]
[358992344,1745611847186,-500.0,0.00027397,2]
[358992346,1745611847196,-500.0,0.00027397,2]
[358992349,1745611847206,-614.77,0.00027397,2]
[358992351,1745611847216,-778.92,0.00027397,2]
[358992353,1745611847227,-500.0,0.00027397,2]
[358992355,1745611847236,-500.0,0.00027397,2]
[358992357,1745611847246,-500.0,0.00027397,2]
[358992359,1745611847256,-500.0,0.00027397,2]
[358992361,1745611847266,-500.0,0.00027397,2]
[358992363,1745611847276,-500.0,0.00027397,2]
[358992365,1745611847286,-500.0,0.00027397,2]
[358992367,1745611847296,-500.0,0.00027397,2]
[358992370,1745611847309,-500.0,0.00027397,2]
[358992372,1745611847319,-831.47,0.00027397,2]
[358992374,1745611847329,-821.16,0.00027397,2]
[358992376,1745611847339,-500.0,0.00027397,2]
[358992378,1745611847349,-500.0,0.00027397,2]
[358992380,1745611847358,-500.0,0.00027397,2]
[358992382,1745611847368,-500.0,0.00027397,2]
[358992384,1745611847378,-500.0,0.00027397,2]
[358992386,1745611847388,-500.0,0.00027397,2]
[358992388,1745611847397,-500.0,0.00027397,2]
[358992390,1745611847407,-500.0,0.00027397,2]
[358992392,1745611847416,-500.0,0.00027397,2]
[358992394,1745611847426,-500.0,0.00027397,2]
[358992396,1745611847435,-500.0,0.00027397,2]
[358992398,1745611847444,-500.0,0.00027397,2]
[358992400,1745611847454,-565.37413062,0.00027397,2]
[358992402,1745611847464,-500.0,0.00027397,2]
[358992404,1745611847474,-1298.62,0.00027397,2]
[358992406,1745611847483,-500.0,0.00027397,2]
[358992408,1745611847492,-744.59,0.00027397,2]
[358992410,1745611847502,-907.53,0.00027397,2]
[358992413,1745611847512,-500.0,0.00027397,2]
[358992415,1745611847521,-572.32,0.00027397,2]
[358992417,1745611847531,-187.68261453,0.00027397,2]
[358992419,1745611847540,-588.42,0.00027397,2]
[358992421,1745611847550,-529.83180292,0.00027397,2]
[358992423,1745611847559,-500.0,0.00027397,2]
[358992425,1745611847569,-519.93809644,0.00027397,2]
[358992427,1745611847579,-500.0,0.00027397,2]
[358992429,1745611847588,-500.0,0.00027397,2]
[358992431,1745611847597,-500.0,0.00027397,2]
[358992433,1745611847607,-500.0,0.00027397,2]
[358992435,1745611847617,-500.0,0.00027397,2]
[358992437,1745611847627,-500.0,0.00027397,2]
[358992439,1745611847637,-500.0,0.00027397,2]
[358992441,1745611847647,-500.0,0.00027397,2]
[358992443,1745611847656,-601.58,0.00027397,2]
[358992445,1745611847666,-777.31,0.00027397,2]
[358992447,1745611847676,-564.21574373,0.00027397,2]
[358992449,1745611847685,-663.27,0.00027397,2]
[358992451,1745611847695,-500.0,0.00027397,2]
[358992453,1745611847704,-500.0,0.00027397,2]
[358992455,1745611847714,-500.0,0.00027397,2]
[358992457,1745611847724,-500.0,0.00027397,2]
[358992459,1745611847733,-500.0,0.00027397,2]
[358992461,1745611847743,-500.0,0.00027397,2]
[358992463,1745611847753,-500.0,0.00027397,2]
[358992465,1745611847763,-542.38629098,0.00027397,2]
[358992467,1745611847773,-500.0,0.00027397,2]
[358992469,1745611847783,-980.12,0.00027397,2]
[358992471,1745611847792,-500.0,0.00027397,2]
[358992473,1745611847802,-500.0,0.00027397,2]
[358992476,1745611847812,-500.0,0.00027397,2]
[358992478,1745611847822,-500.0,0.00027397,2]
[358992480,1745611847832,-247.43427896,0.00027397,2]
[358992482,1745611847844,-500.0,0.00027397,2]
[358992484,1745611847854,-500.0,0.00027397,2]
[358992486,1745611847864,-500.0,0.00027397,2]
[358992488,1745611847874,-523.05,0.00027397,2]
[358992490,1745611847883,-575.86260569,0.00027397,2]
[358992492,1745611847892,-500.0,0.00027397,2]
[358992494,1745611847902,-500.0,0.00027397,2]
[358992496,1745611847912,-500.0,0.00027397,2]
[358992498,1745611847922,-500.0,0.00027397,2]
[358992500,1745611847932,-520.7597961,0.00027397,2]
[358992502,1745611847942,-500.0,0.00027397,2]
[358992504,1745611847952,-500.0,0.00027397,2]
[358992506,1745611847962,-856.47,0.00027397,2]
[358992508,1745611847972,-623.21,0.00027397,2]
[358992510,1745611847982,-500.0,0.00027397,2]
[358992512,1745611847992,-621.92,0.00027397,2]
[358992514,1745611848002,-500.0,0.00027397,2]
[358992516,1745611848011,-500.0,0.00027397,2]
[358992519,1745611848023,-670.5,0.00027397,2]
[358992521,1745611848033,-500.0,0.00027397,2]
[358992523,1745611848043,-500.0,0.00027397,2]
[358992525,1745611848053,-500.0,0.00027397,2]
[358992527,1745611848064,-500.0,0.00027397,2]
[358992529,1745611848077,-500.0,0.00027397,2]
[358992531,1745611848087,-500.0,0.00027397,2]
[358992533,1745611848096,-500.0,0.00027397,2]
[358992535,1745611848106,-500.0,0.00027397,2]
[358992537,1745611848116,-500.0,0.00027397,2]
[358992539,1745611848126,-500.0,0.00027397,2]
[358992541,1745611848136,-500.0,0.00027397,2]
[358992543,1745611848148,-511.56,0.00027397,2]
[358992545,1745611848159,-500.0,0.00027397,2]
[358992547,1745611848170,-584.55058768,0.00027397,2]
[358992549,1745611848181,-500.0,0.00027397,2]
[358992551,1745611848191,-500.0,0.00027397,2]
[358992553,1745611848202,-500.0,0.00027397,2]
[358992554,1745611848212,-500.0,0.00027397,2]
[358992555,1745611848222,-500.0,0.00027397,2]
[358992556,1745611848233,-595.07455108,0.00027397,2]
[358992557,1745611848243,-500.0,0.00027397,2]
[358992558,1745611848253,-500.0,0.00027397,2]
[358992559,1745611848263,-500.0,0.00027397,2]
[358992560,1745611848274,-1279.66,0.00027397,2]
[358992561,1745611848284,-502.64,0.00027397,2]
[358992562,1745611848294,-544.81912869,0.00027397,2]
[358992563,1745611848304,-500.0,0.00027397,2]
[358992564,1745611848314,-774.49,0.00027397,2]
[358992565,1745611848325,-564.26,0.00027397,2]
[358992566,1745611848335,-500.0,0.00027397,2]
[358992567,1745611848345,-929.68,0.00027397,2]
[358992568,1745611848355,-500.0,0.00027397,2]
[358992570,1745611848368,-500.0,0.00027397,2]
[358992572,1745611848378,-295.20967758,0.00027397,2]
[358992574,1745611848388,-500.0,0.00027397,2]
[358992576,1745611848398,-500.0,0.00027397,2]
[358992578,1745611848409,-500.0,0.00027397,2]
[358992580,1745611848419,-386.40983222,0.00027397,2]
[358992581,1745611848431,-500.0,0.00027397,2]
[358992583,1745611848441,-551.86,0.00027397,2]
[358992585,1745611848451,-672.84,0.00027397,2]
[358992587,1745611848460,-500.0,0.00027397,2]
[358992589,1745611848470,-1047.2,0.00027397,2]
[358992591,1745611848482,-500.0,0.00027397,2]
[358992594,1745611848494,-500.0,0.00027397,2]
[358992596,1745611848504,-311.43833684,0.00027397,2]
[358992598,1745611848515,-877.61,0.00027397,2]
[358992600,1745611848525,-500.0,0.00027397,2]
[358992602,1745611848535,-500.0,0.00027397,2]
[358992604,1745611848545,-500.0,0.00027397,2]
[358992606,1745611848556,-500.0,0.00027397,2]
[358992608,1745611848565,-500.0,0.00027397,2]
[358992610,1745611848575,-500.0,0.00027397,2]
[358992612,1745611848585,-500.0,0.00027397,2]
[358992614,1745611848595,-575.49467978,0.00027397,2]
[358992616,1745611848605,-923.17,0.00027397,2]
[358992618,1745611848615,-500.0,0.00027397,2]
[358992620,1745611848625,-850.19,0.00027397,2]
[358992622,1745611848635,-517.24519851,0.00027397,2]
[358992624,1745611848646,-1036.4,0.00027397,2]
[358992626,1745611848655,-500.0,0.00027397,2]
[358992628,1745611848666,-500.0,0.00027397,2]
[358992630,1745611848675,-500.0,0.00027397,2]
[358992632,1745611848684,-500.0,0.00027397,2]
[358992635,1745611848696,-500.0,0.00027397,2]
[358992637,1745611848706,-500.0,0.00027397,2]
[358992639,1745611848716,-500.0,0.00027397,2]
[358992641,1745611848725,-696.39,0.00027397,2]
[358992643,1745611848735,-500.0,0.00027397,2]
[358992656,1745611848848,-1157.28,0.00027397,2]
[358992658,1745611848859,-1000.0,0.00027397,2]
[358992660,1745611848868,-500.0,0.00027397,2]
[358992662,1745611848878,-871.36,0.00027397,2]
[358992664,1745611848890,-500.0,0.00027397,2]
[358992666,1745611848900,-500.0,0.00027397,2]
[358992668,1745611848911,-500.0,0.00027397,2]
[358992670,1745611848921,-500.0,0.00027397,2]
[358992672,1745611848932,-1270.11,0.00027397,2]
[358992675,1745611848942,-196.20869109,0.00027397,2]
[358992677,1745611848951,-500.0,0.00027397,2]
[358992679,1745611848961,-1020.15,0.00027397,2]
[358992681,1745611848970,-722.98,0.00027397,2]
[358992683,1745611848980,-520.05410765,0.00027397,2]
[358992685,1745611848990,-500.0,0.00027397,2]
[358992687,1745611849000,-500.0,0.00027397,2]
[358992689,1745611849010,-500.0,0.00027397,2]
[358992691,1745611849020,-500.0,0.00027397,2]
[358992693,1745611849030,-3256.37,0.00027397,2]
[358992695,1745611849040,-500.0,0.00027397,2]
[358992697,1745611849050,-932.86,0.00027397,2]
[358992699,1745611849060,-402.03054503,0.00027397,2]
[358992701,1745611849073,-553.93,0.00027397,2]
[358992704,1745611849084,-859.96,0.00027397,2]
[358992706,1745611849094,-767.33,0.00027397,2]
[358992708,1745611849103,-901.0,0.00027397,2]
[358992710,1745611849115,-500.0,0.00027397,2]
[358992712,1745611849125,-565.0345149,0.00027397,2]
[358992714,1745611849135,-820.77,0.00027397,2]
[358992716,1745611849145,-1051.01,0.00027397,2]
[358992718,1745611849155,-500.0,0.00027397,2]
[358992720,1745611849166,-773.06,0.00027397,2]
[358992722,1745611849175,-721.69,0.00027397,2]
[358992724,1745611849185,-500.0,0.00027397,2]
[358992726,1745611849195,-500.0,0.00027397,2]
[358992728,1745611849206,-940.7,0.00027397,2]
[358992730,1745611849215,-606.75,0.00027397,2]
[358992732,1745611849225,-500.0,0.00027397,2]
[358992734,1745611849235,-500.0,0.00027397,2]
[358992736,1745611849245,-500.0,0.00027397,2]
[358992738,1745611849255,-500.0,0.00027397,2]
[358992740,1745611849264,-696.34,0.00027397,2]
[358992742,1745611849275,-1221.39,0.00027397,2]
[358992744,1745611849284,-500.0,0.00027397,2]
[358992746,1745611849294,-724.15,0.00027397,2]
[358992748,1745611849304,-500.0,0.00027397,2]
[358992750,1745611849314,-559.48,0.00027397,2]
[358992752,1745611849324,-555.51,0.00027397,2]
[358992754,1745611849335,-757.47,0.00027397,2]
[358992756,1745611849345,-500.0,0.00027397,2]
[358992758,1745611849354,-500.0,0.00027397,2]
[358992760,1745611849364,-500.0,0.00027397,2]
[358992762,1745611849374,-1022.12,0.00027397,2]
[358992764,1745611849384,-675.18,0.00027397,2]
[358992766,1745611849394,-500.0,0.00027397,2]
[358992768,1745611849404,-500.0,0.00027397,2]
[358992770,1745611849414,-977.55,0.00027397,2]
[358992772,1745611849424,-732.03,0.00027397,2]
[358992774,1745611849434,-500.0,0.00027397,2]
[358992776,1745611849444,-500.0,0.00027397,2]
[358992778,1745611849454,-806.24,0.00027397,2]
[358992780,1745611849464,-500.0,0.00027397,2]
[358992782,1745611849473,-948.08,0.00027397,2]
[358992784,1745611849483,-500.0,0.00027397,2]
[358992786,1745611849492,-500.0,0.00027397,2]
[358992788,1745611849502,-500.0,0.00027397,2]
[358992790,1745611849511,-500.0,0.00027397,2]
[358992792,1745611849521,-765.48,0.00027397,2]
[358992794,1745611849530,-500.0,0.00027397,2]
[358992796,1745611849540,-500.0,0.00027397,2]
[358992798,1745611849549,-314686.72,0.00027397,2]
[358992800,1745611849559,-500.0,0.00027397,2]
[358992802,1745611849568,-500.0,0.00027397,2]
[358992804,1745611849578,-500.0,0.00027397,2]
[358992806,1745611849587,-500.0,0.00027397,2]
[358992808,1745611849597,-1598.89,0.00027397,2]
[358992810,1745611849606,-500.0,0.00027397,2]
[358992812,1745611849616,-500.0,0.00027397,2]
[358992814,1745611849625,-575.55,0.00027397,2]
[358992816,1745611849634,-620.10287302,0.00027397,2]
[358992818,1745611849644,-500.0,0.00027397,2]
[358992820,1745611849654,-663.43,0.00027397,2]
[358992822,1745611849663,-500.0,0.00027397,2]
[358992824,1745611849672,-546.43262398,0.00027397,2]
[358992826,1745611849682,-625.0,0.00027397,2]
[358992828,1745611849692,-551.30699805,0.00027397,2]
[358992830,1745611849701,-500.0,0.00027397,2]
[358992832,1745611849711,-500.0,0.00027397,2]
[358992834,1745611849720,-757.84,0.00027397,2]
[358992836,1745611849730,-718.14,0.00027397,2]
[358992838,1745611849739,-500.0,0.00027397,2]
[358992840,1745611849748,-500.0,0.00027397,2]
[358992842,1745611849759,-500.0,0.00027397,2]
[358992844,1745611849769,-214.57028273,0.00027397,2]
[358992846,1745611849779,-500.0,0.00027397,2]
[358992848,1745611849788,-500.0,0.00027397,2]
[358992850,1745611849797,-5604.33,0.00027397,2]
[358992852,1745611849806,-501.87,0.00027397,2]
[358992854,1745611849816,-500.0,0.00027397,2]
[358992856,1745611849825,-500.0,0.00027397,2]
[358992858,1745611849835,-590.79,0.00027397,2]
[358992860,1745611849847,-500.0,0.00027397,2]
[358992862,1745611849860,-500.0,0.00027397,2]
[358992865,1745611849870,-500.0,0.00027397,2]
[358992867,1745611849879,-500.0,0.00027397,2]
[358992869,1745611849888,-988.3,0.00027397,2]
[358992871,1745611849898,-831.02,0.00027397,2]
[358992873,1745611849908,-500.0,0.00027397,2]
[358992875,1745611849918,-500.0,0.00027397,2]
[358992877,1745611849927,-4613.97,0.00027397,2]
[358992879,1745611849937,-500.0,0.00027397,2]
[358992881,1745611849946,-500.0,0.00027397,2]
[358992883,1745611849955,-1055.79,0.00027397,2]
[358992885,1745611849965,-500.0,0.00027397,2]
[358992887,1745611849974,-820.13,0.00027397,2]
[358992888,1745611849983,-500.0,0.00027397,2]
[358992891,1745611849993,-500.0,0.00027397,2]
[358992893,1745611850003,-500.0,0.00027397,2]
[358992895,1745611850012,-578.72,0.00027397,2]
[358992897,1745611850022,-500.0,0.00027397,2]
[358992899,1745611850031,-500.0,0.00027397,2]
[358992901,1745611850040,-500.0,0.00027397,2]
[358992903,1745611850050,-500.0,0.00027397,2]
[358992905,1745611850059,-707.83,0.00027397,2]
[358992907,1745611850072,-500.0,0.00027397,2]
[358992909,1745611850082,-288.75025776,0.00027397,2]
[358992911,1745611850092,-729.57,0.00027397,2]
[358992913,1745611850101,-1005.12,0.00027397,2]
[358992915,1745611850111,-500.0,0.00027397,2]
[358992917,1745611850121,-500.0,0.00027397,2]
[358992919,1745611850130,-876.33,0.00027397,2]
[358992920,1745611850140,-500.0,0.00027397,2]
[358992923,1745611850152,-500.0,0.00027397,2]
[358992925,1745611850162,-619.15,0.00027397,2]
[358992927,1745611850172,-537.83,0.00027397,2]
[358992929,1745611850184,-537.83,0.00027397,2]
[358992931,1745611850197,-500.0,0.00027397,2]
[358992933,1745611850208,-537.83,0.00027397,2]
[358992935,1745611850218,-537.83,0.00027397,2]
[358992937,1745611850228,-1084.29,0.00027397,2]
[358992939,1745611850238,-1600.74,0.00027397,2]
[358992941,1745611850248,-796.64,0.00027397,2]
[358992943,1745611850257,-567.2,0.00027397,2]
[358992945,1745611850267,-500.0,0.00027397,2]
[358992947,1745611850277,-603.85,0.00027397,2]
[358992949,1745611850286,-500.0,0.00027397,2]
[358992951,1745611850296,-1671.87,0.00027397,2]
[358992953,1745611850306,-500.0,0.00027397,2]
[358992955,1745611850316,-942.6,0.00027397,2]
[358992957,1745611850327,-759.93,0.00027397,2]
[358992959,1745611850337,-574.72,0.00027397,2]
[358992961,1745611850347,-500.0,0.00027397,2]
[358992963,1745611850356,-800.19,0.00027397,2]
[358992965,1745611850365,-2587.83,0.00027397,2]
[358992967,1745611850374,-559.13518094,0.00027397,2]
[358992969,1745611850383,-500.0,0.00027397,2]
[358992971,1745611850393,-697.5,0.00027397,2]
[358992973,1745611850403,-500.0,0.00027397,2]
[358992975,1745611850411,-553.9462189,0.00027397,2]
[358992977,1745611850421,-500.0,0.00027397,2]
[358992979,1745611850431,-646.68,0.00027397,2]
[358992981,1745611850440,-163.30586726,0.00027397,2]
[358992983,1745611850449,-500.0,0.00027397,2]
[358992985,1745611850459,-1036.65,0.00027397,2]
[358992987,1745611850468,-500.0,0.00027397,2]
[358992989,1745611850478,-500.0,0.00027397,2]
[358992991,1745611850487,-902.44,0.00027397,2]
[358992992,1745611850496,-413.35843204,0.00027397,2]
[358992994,1745611850505,-500.0,0.00027397,2]
[358992996,1745611850515,-500.0,0.00027397,2]
[358992998,1745611850523,-517.0,0.00027397,2]
[358993000,1745611850534,-500.0,0.00027397,2]
[358993003,1745611850544,-329.91538876,0.00027397,2]
[358993005,1745611850554,-500.0,0.00027397,2]
[358993007,1745611850564,-500.0,0.00027397,2]
[358993009,1745611850574,-635.18,0.00027397,2]
[358993011,1745611850584,-500.0,0.00027397,2]
[358993013,1745611850593,-1127.94,0.00027397,2]
[358993015,1745611850603,-500.0,0.00027397,2]
[358993017,1745611850612,-175.18485036,0.00027397,2]
[358993019,1745611850621,-500.0,0.00027397,2]
[358993021,1745611850631,-689.01,0.00027397,2]
[358993023,1745611850641,-500.0,0.00027397,2]
[358993025,1745611850650,-500.0,0.00027397,2]
[358993027,1745611850660,-500.0,0.00027397,2]
[358993029,1745611850670,-500.0,0.00027397,2]
[358993030,1745611850679,-500.0,0.00027397,2]
[358993033,1745611850689,-990.87,0.00027397,2]
[358993035,1745611850698,-500.0,0.00027397,2]
[358993037,1745611850707,-947.36,0.00027397,2]
[358993038,1745611850716,-573.18,0.00027397,2]
[358993040,1745611850725,-500.0,0.00027397,2]
[358993042,1745611850735,-500.0,0.00027397,2]
[358993045,1745611850744,-500.0,0.00027397,2]
[358993047,1745611850754,-1751.04,0.00027397,2]
[358993049,1745611850765,-899.62,0.00027397,2]
[358993051,1745611850774,-239.42700533,0.00027397,2]
[358993053,1745611850783,-500.0,0.00027397,2]
[358993055,1745611850792,-500.0,0.00027397,2]
[358993057,1745611850802,-1090.37,0.00027397,2]
[358993059,1745611850811,-833.96,0.00027397,2]
[358993060,1745611850820,-861.36,0.00027397,2]
[358993062,1745611850829,-500.0,0.00027397,2]
[358993064,1745611850839,-1073.72,0.00027397,2]
[358993066,1745611850848,-500.0,0.00027397,2]
[358993068,1745611850857,-500.0,0.00027397,2]
[358993070,1745611850867,-500.0,0.00027397,2]
[358993072,1745611850876,-837.27,0.00027397,2]
[358993074,1745611850886,-500.0,0.00027397,2]
[358993076,1745611850895,-1593.03,0.00027397,2]
[358993078,1745611850904,-500.0,0.00027397,2]
[358993080,1745611850913,-1037.34,0.00027397,2]
[358993082,1745611850922,-627.05,0.00027397,2]
[358993084,1745611850932,-730.76,0.00027397,2]
[358993086,1745611850941,-500.0,0.00027397,2]
[358993088,1745611850950,-500.0,0.00027397,2]
[358993090,1745611850960,-243.81530117,0.00027397,2]
[358993092,1745611850968,-554.12,0.00027397,2]
[358993094,1745611850979,-933.77,0.00027397,2]
[358993096,1745611850988,-834.52,0.00027397,2]
[358993098,1745611850997,-500.0,0.00027397,2]
[358993100,1745611851006,-500.0,0.00027397,2]
[358993102,1745611851015,-839.13,0.00027397,2]
[358993104,1745611851024,-500.0,0.00027397,2]
[358993106,1745611851033,-500.0,0.00027397,2]
[358993108,1745611851043,-1328.1,0.00027397,2]
[358993110,1745611851053,-668.14,0.00027397,2]
[358993112,1745611851062,-4576.01,0.00027397,2]
[358993114,1745611851075,-500.0,0.00027397,2]
[358993116,1745611851084,-1733.39,0.00027397,2]
[358993118,1745611851094,-1023.78,0.00027397,2]
[358993120,1745611851104,-231.78979152,0.00027397,2]
[358993122,1745611851114,-500.0,0.00027397,2]
[358993124,1745611851123,-749.32,0.00027397,2]
[358993126,1745611851134,-923.87,0.00027397,2]
[358993128,1745611851144,-773.03,0.00027397,2]
[358993130,1745611851155,-500.0,0.00027397,2]
[358993132,1745611851165,-500.0,0.00027397,2]
[358993133,1745611851174,-500.0,0.00027397,2]
[358993134,1745611851184,-670.04,0.00027397,2]
[358993135,1745611851194,-663.93,0.00027397,2]
[358993136,1745611851203,-899.46,0.00027397,2]
[358993137,1745611851212,-500.0,0.00027397,2]
[358993138,1745611851222,-835.92,0.00027397,2]
[358993139,1745611851231,-500.0,0.00027397,2]
[358993140,1745611851240,-984.95,0.00027397,2]
[358993141,1745611851250,-813.25,0.00027397,2]
[358993142,1745611851260,-500.0,0.00027397,2]
[358993143,1745611851270,-500.0,0.00027397,2]
[358993144,1745611851279,-1465.87,0.00027397,2]
[358993145,1745611851289,-500.0,0.00027397,2]
[358993146,1745611851299,-500.0,0.00027397,2]
[358993148,1745611851309,-500.0,0.00027397,2]
[358993150,1745611851318,-890.94,0.00027397,2]
[358993152,1745611851328,-1567.4,0.00027397,2]
[358993154,1745611851337,-500.0,0.00027397,2]
[358993156,1745611851346,-500.0,0.00027397,2]
[358993158,1745611851355,-500.0,0.00027397,2]
[358993160,1745611851365,-500.0,0.00027397,2]
[358993162,1745611851376,-1403.55,0.00027397,2]
[358993164,1745611851386,-1154.95,0.00027397,2]
[358993166,1745611851397,-500.0,0.00027397,2]
[358993168,1745611851406,-1154.95,0.00027397,2]
[358993170,1745611851415,-4990.27,0.00027397,2]
[358993172,1745611851424,-1154.95,0.00027397,2]
[358993174,1745611851434,-500.0,0.00027397,2]
[358993176,1745611851443,-500.0,0.00027397,2]
[358993178,1745611851452,-617.3,0.00027397,2]
[358993180,1745611851461,-794.17,0.00027397,2]
[358993182,1745611851472,-500.0,0.00027397,2]
[358993184,1745611851481,-500.0,0.00027397,2]
[358993186,1745611851491,-663.75,0.00027397,2]
[358993188,1745611851500,-915.31,0.00027397,2]
[358993190,1745611851509,-1067.28,0.00027397,2]
[358993192,1745611851518,-524.93,0.00027397,2]
[358993194,1745611851527,-716.61,0.00027397,2]
[358993196,1745611851537,-500.0,0.00027397,2]
[358993198,1745611851545,-500.0,0.00027397,2]
[358993200,1745611851554,-800.62,0.00027397,2]
[358993202,1745611851564,-500.0,0.00027397,2]
[358993204,1745611851574,-676.23,0.00027397,2]
[358993206,1745611851583,-500.0,0.00027397,2]
[358993208,1745611851592,-821.76,0.00027397,2]
[358993210,1745611851602,-809.1,0.00027397,2]
[358993212,1745611851611,-398.89629351,0.00027397,2]
[358993214,1745611851620,-870.41,0.00027397,2]
[358993216,1745611851629,-567.35063336,0.00027397,2]
[358993218,1745611851639,-500.0,0.00027397,2]
[358993220,1745611851648,-500.0,0.00027397,2]
[358993222,1745611851657,-745.19271904,0.00027397,2]
[358993224,1745611851666,-500.43317415,0.00027397,2]
[358993226,1745611851676,-500.0,0.00027397,2]
[358993228,1745611851685,-141830.62,0.00027397,2]